bitfinex/quotes_BTCUSD_20250705
["timestamp","ask_amount","ask_price","bid_price","bid_amount"]
[1751703729106,0.7408319,108270.0,108260.0,0.20331438]
[1751703729951,0.7408319,108270.0,108260.0,0.19407745]
[1751703730784,0.7408319,108270.0,108260.0,0.18484043]
[1751703730986,0.7408319,108270.0,108260.0,0.19407745]
[1751703731191,0.46098565,108270.0,108260.0,0.19407745]
[1751703731400,0.7408319,108270.0,108260.0,0.19407745]
[1751703733046,0.7408319,108270.0,108260.0,0.18484043]
[1751703733283,0.7408319,108270.0,108260.0,0.19407745]
[1751703733488,0.81441792,108270.0,108260.0,0.19407745]
[1751703733697,0.81441792,108270.0,108260.0,0.18484043]
[1751703735190,0.81441792,108270.0,108260.0,0.19407745]
[1751703735675,0.7408319,108270.0,108260.0,0.19407745]
[1751703735886,0.7408319,108270.0,108260.0,0.20331438]
[1751703736099,0.7408319,108270.0,108260.0,0.18484043]
[1751703736758,0.7408319,108270.0,108260.0,0.19407745]
[1751703737194,0.7408319,108270.0,108260.0,0.20331438]
[1751703738495,0.7408319,108270.0,108260.0,0.19407745]
[1751703739131,0.7408319,108270.0,108260.0,0.20331438]
[1751703739789,0.46098565,108270.0,108260.0,0.21255123]
[1751703740001,0.7408319,108270.0,108260.0,0.22178799]
[1751703740222,0.7408319,108270.0,108260.0,0.23718799]
[1751703740654,0.7408319,108270.0,108260.0,0.22795123]
[1751703742422,0.71310073,108270.0,108260.0,0.22795123]
[1751703742635,0.71310073,108270.0,108260.0,0.21871438]
[1751703742843,0.70810073,108270.0,108260.0,0.22795123]
[1751703744972,0.42825448,108270.0,108260.0,0.22795123]
[1751703745254,0.70810073,108270.0,108260.0,0.22795123]
[1751703745459,0.70810073,108270.0,108260.0,0.23718799]
[1751703746565,0.73580862,108270.0,108260.0,0.23718799]
[1751703746975,0.55108525,108270.0,108260.0,0.23718799]
[1751703748223,0.55108525,108270.0,108260.0,0.22795123]
[1751703749529,0.59941468,108270.0,108260.0,0.22795123]
[1751703749951,0.59941468,108270.0,108260.0,0.23718799]
[1751703750362,0.78413805,108270.0,108260.0,0.22795123]
[1751703750585,0.78413805,108270.0,108260.0,0.23718799]
[1751703750807,0.59941468,108270.0,108260.0,0.23718799]
[1751703751232,0.55108525,108270.0,108260.0,0.23718799]
[1751703754631,0.55108525,108270.0,108260.0,0.24642467]
[1751703756295,0.55108525,108270.0,108260.0,0.23718799]
[1751703756496,0.55108525,108270.0,108260.0,0.22795123]
[1751703756867,0.55108525,108270.0,108260.0,0.23718799]
[1751703758035,0.55108525,108270.0,108260.0,0.22795123]
[1751703758648,0.55108525,108270.0,108260.0,0.23718799]
[1751703758823,0.55108525,108270.0,108260.0,0.22795123]
[1751703759019,0.55108465,108270.0,108260.0,0.23718791]
[1751703759232,0.56169701,108270.0,108260.0,0.23718799]
[1751703759435,0.74642038,108270.0,108260.0,0.21871438]
[1751703759755,0.74642038,108270.0,108260.0,0.22795123]
[1751703760554,0.74642038,108270.0,108260.0,0.23718799]
[1751703761135,0.56169701,108270.0,108260.0,0.23718799]
[1751703761335,0.56169701,108270.0,108260.0,0.24642467]
[1751703761723,0.56169701,108270.0,108260.0,0.22795123]
[1751703762765,0.56169701,108270.0,108260.0,0.23718799]
[1751703764745,0.56169701,108270.0,108260.0,0.22795123]
[1751703765211,0.56169701,108270.0,108260.0,0.23718799]
[1751703765631,0.56169701,108270.0,108260.0,0.24642467]
[1751703766481,0.56169701,108270.0,108260.0,0.23718799]
[1751703767311,0.56169701,108270.0,108260.0,0.24642467]
[1751703767918,0.56169701,108270.0,108260.0,0.23718799]
[1751703768527,0.74642038,108270.0,108260.0,0.22795123]
[1751703768760,0.74642038,108270.0,108260.0,0.23718791]
[1751703769628,0.74642038,108270.0,108260.0,0.23718799]
[1751703770853,0.74642038,108270.0,108260.0,0.22795123]
[1751703771286,0.74642038,108270.0,108260.0,0.23718799]
[1751703771898,0.74642038,108270.0,108260.0,0.21871438]
[1751703772102,0.82862183,108270.0,108260.0,0.22795123]
[1751703772782,0.82862183,108270.0,108260.0,0.23718799]
[1751703773613,0.82862183,108270.0,108260.0,0.22795123]
[1751703774364,0.82862183,108270.0,108260.0,0.23718799]
[1751703774565,0.82862183,108270.0,108260.0,0.22795123]
[1751703775368,0.82862183,108270.0,108260.0,0.21871438]
[1751703776700,0.82862183,108270.0,108260.0,0.22795123]
[1751703777118,0.82862183,108270.0,108260.0,0.20331438]
[1751703778412,0.82862183,108270.0,108260.0,0.19407745]
[1751703778620,0.82862183,108270.0,108260.0,0.20331438]
[1751703778827,0.82862183,108270.0,108260.0,0.19407745]
[1751703779657,0.82862183,108270.0,108260.0,0.20331438]
[1751703780134,0.82862183,108270.0,108260.0,0.19407745]
[1751703780358,0.82862183,108270.0,108260.0,0.20331438]
[1751703780577,0.81938618,108270.0,108260.0,0.18484043]
[1751703780798,0.83528618,108270.0,108260.0,0.19407736]
[1751703781014,0.81938618,108270.0,108260.0,0.19407736]
[1751703781891,0.81938618,108270.0,108260.0,0.19407745]
[1751703782547,0.81938618,108270.0,108260.0,0.2033143]
[1751703782967,0.81938618,108270.0,108260.0,0.20331438]
[1751703783814,0.81938618,108270.0,108260.0,0.21255123]
[1751703784432,0.72794925,108270.0,108260.0,0.23818791]
[1751703784881,0.72794925,108270.0,108260.0,0.23818799]
[1751703785313,0.54322588,108270.0,108260.0,0.24742467]
[1751703785740,0.72794925,108270.0,108260.0,0.22895123]
[1751703786807,0.72794979,108270.0,108260.0,0.22895123]
[1751703788155,0.72794979,108270.0,108260.0,0.21971438]
[1751703788797,0.7910708,108270.0,108260.0,0.21971438]
[1751703789210,0.7910708,108270.0,108260.0,0.23818799]
[1751703789417,0.72794979,108270.0,108260.0,0.23818799]
[1751703789752,0.72794979,108270.0,108260.0,0.22895123]
[1751703790330,0.72794979,108270.0,108260.0,0.23818799]
[1751703790713,0.72794979,108270.0,108260.0,0.22895123]
[1751703791119,0.72794979,108270.0,108260.0,0.23818799]
[1751703791526,0.72794979,108270.0,108260.0,0.22895123]
[1751703791962,0.72794979,108270.0,108260.0,0.21971438]
[1751703792168,0.72794979,108270.0,108260.0,0.22895123]
[1751703792425,0.72794979,108270.0,108260.0,0.23818799]
[1751703792674,0.72795001,108270.0,108260.0,0.23818799]
[1751703792871,0.72795001,108270.0,108260.0,0.22895123]
[1751703793760,0.72795001,108270.0,108260.0,0.23818799]
[1751703793969,0.72795001,108270.0,108260.0,0.22895123]
[1751703794455,0.72795001,108270.0,108260.0,0.23818799]
[1751703795018,0.72795001,108270.0,108260.0,0.22895123]
[1751703795272,0.7187141,108270.0,108260.0,0.22895123]
[1751703796553,0.7187141,108270.0,108260.0,0.21971438]
[1751703798774,0.70947794,108270.0,108260.0,0.21971438]
[1751703801948,0.70947794,108270.0,108260.0,0.20331438]
[1751703803413,0.80091487,108270.0,108260.0,0.21255123]
[1751703803627,0.70947794,108270.0,108260.0,0.21255123]
[1751703804266,0.70947794,108270.0,108260.0,0.22875123]
[1751703804915,0.52379794,108270.0,108260.0,0.22875123]
[1751703807731,0.52379794,108270.0,108260.0,0.21951438]
[1751703809726,0.52379794,108270.0,108260.0,0.19407745]
[1751703809912,0.52379794,108270.0,108260.0,0.18484043]
[1751703810087,0.53989794,108270.0,108260.0,0.18484043]
[1751703810305,0.55549794,108270.0,108260.0,0.0001]
[1751703810910,0.5953786,108270.0,108260.0,0.0001]
[1751703811805,0.5953786,108270.0,108260.0,0.18484043]
[1751703813517,0.5797786,108270.0,108260.0,0.18484043]
[1751703813934,0.5797786,108270.0,108260.0,0.0001]
[1751703815252,0.5636786,108270.0,108260.0,0.0001]
[1751703820680,0.52379794,108270.0,108260.0,0.0001]
[1751703825225,0.52379794,108270.0,108260.0,0.18484043]
[1751703827484,0.52193434,108270.0,108260.0,0.18484043]
[1751703831665,0.52193434,108270.0,108260.0,0.0001]
[1751703832996,0.52193434,108270.0,108260.0,0.18484043]
[1751703834755,0.25132425,108270.0,108260.0,0.20937728]
[1751703834966,0.36491869,108270.0,108260.0,0.23391404]
[1751703835979,0.36491869,108270.0,108260.0,0.22467728]
[1751703836212,0.54964206,108270.0,108260.0,0.23391404]
[1751703837257,0.54964206,108270.0,108260.0,0.22467728]
[1751703838867,0.54964206,108270.0,108260.0,0.23391404]
[1751703839270,0.54964206,108270.0,108260.0,0.22467728]
[1751703840095,0.54964206,108270.0,108260.0,0.23391404]
[1751703840463,0.11281476,108270.0,108260.0,0.23391404]
[1751703840644,0.12205075,108270.0,108260.0,0.25238714]
[1751703840839,0.401897,108270.0,108260.0,0.24315072]
[1751703841072,0.401897,108270.0,108260.0,0.25238723]
[1751703841289,0.401897,108270.0,108260.0,0.26162365]
[1751703841489,0.401897,108270.0,108260.0,0.25238723]
[1751703841892,0.5773854,108270.0,108260.0,0.20014043]
[1751703842093,0.5773854,108270.0,108260.0,0.19407736]
[1751703842357,0.66887233,108270.0,108260.0,0.19407745]
[1751703842730,0.65963659,108270.0,108260.0,0.0001]
[1751703843142,0.65963659,108270.0,108260.0,0.18484043]
[1751703843790,0.63189334,108270.0,108260.0,0.0001]
[1751703844013,1.32229825,108270.0,108260.0,0.0001]
[1751703844229,1.33739825,108270.0,108260.0,0.0001]
[1751703846138,1.30222853,108270.0,108260.0,0.0001]
[1751703846580,1.32071475,108270.0,108260.0,0.0001]
[1751703846792,0.20323264,108250.0,108240.0,0.06312]
[1751703847003,0.60580782,108250.0,108240.0,0.0182]
[1751703847446,0.59657038,108250.0,108240.0,0.20297457]
[1751703847864,0.58733268,108250.0,108240.0,0.20297457]
[1751703848075,0.58733268,108250.0,108240.0,0.0182]
[1751703848960,0.58733268,108250.0,108240.0,0.20297457]
[1751703849181,0.59677394,108250.0,108240.0,0.20297457]
[1751703849804,0.59777394,108250.0,108240.0,0.20297457]
[1751703850222,0.59777394,108250.0,108240.0,0.20397457]
[1751703851069,0.59777394,108250.0,108240.0,0.0192]
[1751703854012,0.59777394,108250.0,108240.0,0.003]
[1751703854639,0.96867394,108250.0,108240.0,0.003]
[1751703858720,0.96867394,108250.0,108240.0,0.0031]
[1751703862291,1.15439394,108250.0,108240.0,0.0031]
[1751703862724,1.41914019,108250.0,108240.0,0.0031]
[1751703863154,1.43544019,108250.0,108240.0,0.0031]
[1751703863861,1.47233542,108250.0,108240.0,0.0031]
[1751703870512,1.50007057,108250.0,108240.0,0.0031]
[1751703874402,1.46317534,108250.0,108240.0,0.0031]
[1751703879254,1.46317534,108250.0,108220.0,0.30028093]
[1751703879255,0.21250935,108230.0,108220.0,0.29838093]
[1751703879451,0.55520422,108230.0,108220.0,0.38981786]
[1751703879826,0.55520422,108230.0,108220.0,0.39905795]
[1751703879996,0.55520422,108230.0,108220.0,0.38981786]
[1751703880409,0.55520422,108230.0,108220.0,0.30042793]
[1751703880624,0.55520422,108230.0,108220.0,0.29118784]
[1751703880839,0.55520422,108230.0,108220.0,0.29518784]
[1751703882330,0.54596524,108230.0,108220.0,0.29518784]
[1751703882771,0.54596524,108230.0,108220.0,0.30442801]
[1751703884149,0.54596524,108230.0,108220.0,0.29518784]
[1751703884803,0.54596524,108230.0,108220.0,0.30442801]
[1751703885108,0.54596524,108230.0,108220.0,0.3136681]
[1751703885761,0.54596524,108230.0,108220.0,0.30442801]
[1751703885947,0.54596524,108230.0,108220.0,0.27670723]
[1751703886171,0.54596524,108230.0,108220.0,0.29518784]
[1751703886956,0.54596524,108230.0,108220.0,0.30442801]
[1751703887961,0.26611899,108230.0,108220.0,0.30442801]
[1751703888163,0.54596524,108230.0,108220.0,0.30442801]
[1751703888365,0.57368018,108230.0,108220.0,0.30442801]
[1751703888678,0.56444094,108230.0,108220.0,0.29518784]
[1751703890703,0.38888854,108230.0,108220.0,0.31366733]
[1751703891122,0.39812812,108230.0,108220.0,0.30442758]
[1751703891538,0.39812812,108230.0,108220.0,0.3136675]
[1751703891783,0.39817812,108230.0,108220.0,0.3136675]
[1751703893065,0.34826818,108230.0,108220.0,0.3136675]
[1751703894377,0.39819384,108230.0,108220.0,0.3136675]
[1751703895853,0.39819384,108230.0,108220.0,0.30442758]
[1751703896063,0.58298548,108230.0,108220.0,0.29518758]
[1751703896267,0.58298548,108230.0,108220.0,0.30442758]
[1751703897515,0.58286306,108230.0,108220.0,0.30442758]
[1751703897732,0.58286306,108230.0,108220.0,0.25950758]
[1751703899046,0.58286306,108230.0,108220.0,0.25026758]
[1751703899920,0.58286306,108230.0,108220.0,0.25950767]
[1751703900570,0.57362382,108230.0,108220.0,0.24102741]
[1751703900781,0.56450675,108230.0,108220.0,0.03963808]
[1751703901586,0.56450675,108230.0,108220.0,0.23368723]
[1751703901930,0.56450675,108230.0,108220.0,0.24292758]
[1751703902180,0.56450675,108230.0,108220.0,0.2244468]
[1751703902812,0.56450675,108230.0,108220.0,0.23368715]
[1751703903024,0.56450675,108230.0,108220.0,0.23368723]
[1751703903656,0.56450675,108230.0,108220.0,0.24292758]
[1751703903866,0.56450675,108230.0,108220.0,0.25216784]
[1751703904067,0.56450675,108230.0,108220.0,0.23368723]
[1751703904283,0.56450675,108230.0,108220.0,0.2244468]
[1751703904491,0.56450675,108230.0,108220.0,0.23368723]
[1751703905335,0.56450675,108230.0,108220.0,0.2244468]
[1751703905547,0.56450675,108230.0,108220.0,0.23368723]
[1751703906513,0.56450675,108230.0,108220.0,0.22672758]
[1751703906921,0.56450675,108230.0,108220.0,0.21748723]
[1751703907278,0.56450675,108230.0,108220.0,0.02343808]
[1751703908112,0.56450675,108230.0,108220.0,0.00823808]
[1751703908750,0.56450675,108230.0,108220.0,0.00623808]
[1751703909222,0.56450675,108230.0,108220.0,0.00723808]
[1751703909720,0.56450675,108230.0,108220.0,0.00323808]
[1751703909915,0.56450675,108230.0,108220.0,0.00423808]
[1751703910340,0.55526717,108230.0,108220.0,0.00423808]
[1751703914715,0.89526717,108230.0,108220.0,0.00423808]
[1751703914940,0.93224914,108230.0,108220.0,0.00423808]
[1751703917594,0.65240289,108230.0,108220.0,0.00423808]
[1751703917808,0.93224914,108230.0,108220.0,0.00423808]
[1751703923012,1.11792914,108230.0,108220.0,0.00423808]
[1751703925931,1.11792914,108230.0,108220.0,0.19828723]
[1751703926791,1.11792914,108230.0,108220.0,0.1890468]
[1751703932831,1.11792914,108230.0,108220.0,0.19828723]
[1751703933696,1.11792914,108230.0,108220.0,0.22302758]
[1751703933906,1.11792914,108230.0,108220.0,0.23226784]
[1751703934469,0.94237691,108230.0,108220.0,0.24150801]
[1751703934674,0.64035568,108230.0,108220.0,0.2668481]
[1751703934898,0.92020193,108230.0,108220.0,0.2668481]
[1751703935099,1.10499357,108230.0,108220.0,0.25760801]
[1751703937271,0.92944082,108230.0,108220.0,0.26684801]
[1751703937510,0.74376082,108230.0,108220.0,0.2668481]
[1751703937875,0.74376082,108230.0,108220.0,0.25760801]
[1751703938281,0.74376082,108230.0,108220.0,0.2668481]
[1751703938629,0.74376082,108230.0,108220.0,0.25760801]
[1751703938832,1.0074116,108230.0,108220.0,0.25760801]
[1751703940194,1.0074116,108230.0,108220.0,0.2668481]
[1751703941883,1.0074116,108230.0,108220.0,0.25760801]
[1751703943373,1.0074116,108230.0,108220.0,0.24836784]
[1751703943670,1.0074116,108230.0,108220.0,0.23912758]
[1751703943907,0.98893313,108230.0,108220.0,0.00423808]
[1751703944130,0.96119665,108230.0,108220.0,0.00423808]
[1751703944331,0.97629665,108230.0,108220.0,0.00423808]
[1751703945585,1.16201665,108230.0,108220.0,0.00423808]
[1751703946424,1.14691665,108230.0,108220.0,0.00423808]
[1751703947285,1.14691665,108230.0,108220.0,0.00103808]
[1751703950433,1.20238961,108230.0,108220.0,0.00103808]
[1751703952380,1.14691665,108230.0,108220.0,0.00103808]
[1751703954885,1.14691665,108230.0,108220.0,0.21068723]
[1751703955358,1.14691665,108230.0,108220.0,0.2014468]
[1751703957984,1.13767707,108230.0,108220.0,0.01663808]
[1751703960094,1.13767707,108230.0,108220.0,0.2014468]
[1751703961366,1.13767707,108230.0,108220.0,0.1858468]
[1751703962447,1.13767707,108230.0,108220.0,0.19508723]
[1751703963149,1.04957904,108230.0,108220.0,0.19508723]
[1751703963363,1.05881845,108230.0,108220.0,0.23622758]
[1751703963567,1.05881845,108230.0,108220.0,0.24546784]
[1751703963807,1.05881845,108230.0,108220.0,0.25470801]
[1751703964458,1.05885845,108230.0,108220.0,0.25470801]
[1751703965088,1.05885845,108230.0,108220.0,0.2639481]
[1751703965308,1.05885845,108230.0,108220.0,0.26394767]
[1751703965734,1.05885845,108230.0,108220.0,0.25470767]
[1751703966604,1.11433141,108230.0,108220.0,0.25470767]
[1751703967246,1.11433141,108230.0,108220.0,0.23622741]
[1751703968405,1.16653871,108230.0,108220.0,0.23622741]
[1751703968840,1.11106575,108230.0,108220.0,0.24546758]
[1751703969052,1.11106575,108230.0,108220.0,0.23622741]
[1751703969265,1.11106575,108230.0,108220.0,0.22698715]
[1751703970068,1.11106575,108230.0,108220.0,0.23622741]
[1751703970281,1.11106575,108230.0,108220.0,0.22698715]
[1751703970529,1.16653871,108230.0,108220.0,0.22698715]
[1751703971641,1.16653871,108230.0,108220.0,0.23622741]
[1751703971846,1.16653871,108230.0,108220.0,0.22042741]
[1751703972868,1.11433141,108230.0,108220.0,0.22966758]
[1751703973051,1.11433141,108230.0,108220.0,0.23890767]
[1751703973825,1.13281014,108230.0,108220.0,0.26314767]
[1751703974280,0.93877892,108230.0,108220.0,0.26314759]
[1751703974564,0.94801841,108230.0,108220.0,0.25390767]
[1751703974771,1.13281005,108230.0,108220.0,0.24466758]
[1751703974975,1.15890659,108230.0,108220.0,0.24466758]
[1751703975304,1.14966718,108230.0,108220.0,0.22618715]
[1751703976813,1.14966718,108230.0,108220.0,0.23542741]
[1751703977463,1.11433149,108230.0,108220.0,0.23542741]
[1751703979341,1.11433149,108230.0,108220.0,0.24466758]
[1751703979776,0.64872524,108230.0,108220.0,0.25390758]
[1751703979981,0.93877909,108230.0,108220.0,0.26314698]
[1751703980200,0.93877909,108230.0,108220.0,0.24466723]
[1751703981026,1.12357073,108230.0,108220.0,0.24466723]
[1751703981186,1.06809777,108230.0,108220.0,0.24466723]
[1751703982023,1.06809777,108230.0,108220.0,0.23542723]
[1751703982236,1.1595347,108230.0,108220.0,0.23542723]
[1751703983410,1.06809777,108230.0,108220.0,0.23542723]
[1751703986079,1.06809777,108230.0,108220.0,0.25390732]
[1751703986281,0.78825152,108230.0,108220.0,0.25390732]
[1751703986482,1.06809777,108230.0,108220.0,0.25390732]
[1751703986705,1.06809777,108230.0,108220.0,0.24466732]
[1751703987620,1.06809777,108230.0,108220.0,0.25390732]
[1751703990408,1.06809777,108230.0,108220.0,0.24466732]
[1751703991996,1.06809777,108230.0,108220.0,0.23542723]
[1751703992828,1.06809777,108230.0,108220.0,0.23552723]
[1751703995210,1.06809777,108230.0,108220.0,0.24476732]
[1751703997689,0.59418013,108230.0,108220.0,0.5338534]
[1751703997890,0.44545126,108230.0,108220.0,0.5338534]
[1751703998099,0.4269733,108230.0,108220.0,0.62529033]
[1751703998257,0.38999133,108230.0,108220.0,0.62529033]
[1751703998773,0.38999133,108230.0,108220.0,0.81101033]
[1751704000730,0.38998003,108230.0,108220.0,0.81101033]
[1751704002320,0.39921884,108230.0,108220.0,0.81101033]
[1751704002550,0.38998003,108230.0,108220.0,0.81101033]
[1751704004239,0.39921884,108230.0,108220.0,0.81101033]
[1751704005953,0.40845782,108230.0,108220.0,0.81101033]
[1751704006405,0.41769697,108230.0,108220.0,0.81101033]
[1751704006625,0.41769689,108230.0,108220.0,0.81101033]
[1751704007772,0.41769689,108230.0,108220.0,0.53116408]
[1751704007979,0.41768331,108230.0,108220.0,0.53116408]
[1751704008190,0.40844424,108230.0,108220.0,0.53116408]
[1751704008622,0.41768339,108230.0,108220.0,0.53116408]
[1751704008875,0.40844424,108230.0,108220.0,0.53116408]
[1751704010796,0.49988117,108230.0,108220.0,0.53116408]
[1751704011431,0.40332424,108230.0,108220.0,0.53116408]
[1751704011637,0.69240964,108230.0,108220.0,0.53116408]
[1751704012059,0.69240956,108230.0,108220.0,0.53116408]
[1751704012516,0.41256331,108230.0,108220.0,0.81101033]
[1751704012922,0.41256331,108230.0,108220.0,0.53116408]
[1751704014605,0.39408526,108230.0,108220.0,0.53116408]
[1751704015766,0.40332424,108230.0,108220.0,0.53116408]
[1751704016380,0.39408526,108230.0,108220.0,0.53116408]
[1751704016783,0.40332424,108230.0,108220.0,0.53116408]
[1751704017614,0.39408526,108230.0,108220.0,0.53116408]
[1751704017828,0.40332415,108230.0,108220.0,0.53116408]
[1751704020129,0.41256322,108230.0,108220.0,0.53116408]
[1751704020328,0.40332415,108230.0,108220.0,0.53116408]
[1751704021678,0.40332415,108230.0,108220.0,0.81101033]
[1751704021886,0.39408526,108230.0,108220.0,0.81101033]
[1751704022575,0.40332424,108230.0,108220.0,0.81101033]
[1751704023351,0.40332415,108230.0,108220.0,0.81101033]
[1751704024146,0.39408526,108230.0,108220.0,0.81101033]
[1751704024554,0.39408526,108230.0,108220.0,0.53116408]
[1751704025001,0.39408526,108230.0,108220.0,0.81101033]
[1751704025832,0.39413526,108230.0,108220.0,0.81101033]
[1751704028690,0.40337415,108230.0,108220.0,0.81101033]
[1751704029727,0.39413526,108230.0,108220.0,0.81101033]
[1751704036806,0.40337424,108230.0,108220.0,0.81101033]
[1751704037428,0.39413526,108230.0,108220.0,0.81101033]
[1751704037569,0.40337415,108230.0,108220.0,0.81101033]
[1751704037975,0.41261313,108230.0,108220.0,0.81101033]
[1751704038185,0.40337415,108230.0,108220.0,0.81101033]
[1751704040190,0.40337415,108230.0,108220.0,0.53116408]
[1751704040394,0.40337415,108230.0,108220.0,0.81101033]
[1751704042415,0.39413526,108230.0,108220.0,0.81101033]
[1751704046102,0.38489645,108230.0,108220.0,0.81101033]
[1751704046280,0.39413526,108230.0,108220.0,0.81101033]
[1751704046731,0.38489645,108230.0,108220.0,0.81101033]
[1751704046929,0.39413526,108230.0,108220.0,0.81101033]
[1751704047702,0.40337424,108230.0,108220.0,0.81101033]
[1751704049563,0.40337424,108230.0,108220.0,0.53116408]
[1751704051698,0.40337424,108230.0,108220.0,0.51616408]
[1751704051917,0.40337424,108230.0,108220.0,0.79601033]
[1751704053092,0.40337424,108230.0,108220.0,0.51616408]
[1751704055477,0.68322049,108230.0,108220.0,0.51616408]
[1751704057028,0.69245964,108230.0,108220.0,0.51616408]
[1751704057232,0.69245956,108230.0,108220.0,0.51616408]
[1751704058681,0.68322049,108230.0,108220.0,0.51616408]
[1751704059102,0.40337424,108230.0,108220.0,0.51616408]
[1751704065070,0.41261339,108230.0,108220.0,0.51616408]
[1751704065445,0.40337424,108230.0,108220.0,0.51616408]
[1751704070952,0.41261339,108230.0,108220.0,0.51616408]
[1751704072055,0.40337424,108230.0,108220.0,0.51616408]
[1751704073436,0.41261339,108230.0,108220.0,0.51616408]
[1751704073745,0.40337424,108230.0,108220.0,0.51616408]
[1751704074350,0.41261339,108230.0,108220.0,0.51616408]
[1751704075368,0.40337424,108230.0,108220.0,0.51616408]
[1751704075771,0.41261331,108230.0,108220.0,0.51616408]
[1751704076990,0.40337424,108230.0,108220.0,0.51616408]
[1751704077194,0.40029424,108230.0,108220.0,0.51616408]
[1751704078694,0.39105526,108230.0,108220.0,0.51616408]
[1751704079100,0.40029424,108230.0,108220.0,0.51616408]
[1751704079298,0.39105526,108230.0,108220.0,0.51616408]
[1751704079509,0.40029424,108230.0,108220.0,0.51616408]
[1751704079924,0.39105526,108230.0,108220.0,0.51616408]
[1751704080594,0.39105526,108230.0,108220.0,0.33044408]
[1751704080820,0.40029424,108230.0,108220.0,0.51612408]
[1751704081467,0.40029433,108230.0,108220.0,0.51612408]
[1751704081700,0.40029424,108230.0,108220.0,0.51612408]
[1751704082535,0.41877271,108230.0,108220.0,0.51612408]
[1751704082743,0.40953339,108230.0,108220.0,0.51612408]
[1751704082954,0.40029424,108230.0,108220.0,0.51612408]
[1751704085519,0.40953331,108230.0,108220.0,0.51612408]
[1751704086568,0.41877255,108230.0,108220.0,0.51612408]
[1751704086784,0.41877246,108230.0,108220.0,0.51612408]
[1751704087615,0.40953331,108230.0,108220.0,0.51612408]
[1751704089794,0.41877255,108230.0,108220.0,0.51612408]
[1751704090001,0.40953331,108230.0,108220.0,0.51612408]
[1751704090401,0.40029424,108230.0,108220.0,0.51612408]
[1751704095360,0.40953331,108230.0,108220.0,0.51612408]
[1751704096399,0.35961686,108230.0,108220.0,0.51612408]
[1751704096613,0.40957123,108230.0,108220.0,0.51612408]
[1751704098398,0.41881047,108230.0,108220.0,0.51612408]
[1751704098750,0.41881038,108230.0,108220.0,0.51612408]
[1751704102550,0.4280497,108230.0,108220.0,0.51612408]
[1751704103011,0.41881038,108230.0,108220.0,0.51612408]
[1751704103559,0.42804962,108230.0,108220.0,0.51612408]
[1751704104673,0.41881081,108230.0,108220.0,0.51612408]
[1751704105574,0.38185437,108230.0,108220.0,0.81097033]
[1751704105779,0.39109326,108230.0,108220.0,0.81097033]
[1751704106474,0.39109335,108230.0,108220.0,0.81097033]
[1751704108583,0.4003325,108230.0,108220.0,0.81097033]
[1751704108997,0.39109335,108230.0,108220.0,0.81097033]
[1751704109422,0.40033242,108230.0,108220.0,0.81097033]
[1751704109616,0.39109326,108230.0,108220.0,0.81097033]
[1751704110980,0.39109326,108230.0,108220.0,0.53112408]
[1751704111194,0.40033233,108230.0,108220.0,0.53112408]
[1751704111413,0.39109326,108230.0,108220.0,0.81097033]
[1751704111628,0.40033224,108230.0,108220.0,0.53112408]
[1751704112649,0.39109326,108230.0,108220.0,0.81097033]
[1751704113080,0.38185437,108230.0,108220.0,0.81097033]
[1751704114440,0.39109326,108230.0,108220.0,0.81097033]
[1751704114654,0.38185437,108230.0,108220.0,0.81097033]
[1751704115295,0.39109318,108230.0,108220.0,0.81097033]
[1751704115709,0.39109318,108230.0,108220.0,0.53112408]
[1751704117043,0.40033216,108230.0,108220.0,0.53112408]
[1751704119190,0.39109318,108230.0,108220.0,0.53112408]
[1751704119786,0.40033216,108230.0,108220.0,0.53112408]
[1751704119992,0.39109318,108230.0,108220.0,0.53112408]
[1751704120855,0.40033216,108230.0,108220.0,0.53112408]
[1751704121175,0.40033216,108230.0,108220.0,0.57608408]
[1751704122103,0.40033207,108230.0,108220.0,0.57608408]
[1751704123146,0.40957114,108230.0,108220.0,0.56108408]
[1751704125109,0.40949485,108230.0,108220.0,0.56108408]
[1751704128333,0.41873409,108230.0,108220.0,0.56108408]
[1751704128666,0.40949485,108230.0,108220.0,0.56108408]
[1751704134009,0.40949591,108230.0,108220.0,0.56108408]
[1751704138257,0.41873506,108230.0,108220.0,0.56108408]
[1751704139442,0.41873506,108230.0,108220.0,0.51612408]
[1751704140886,0.40949591,108230.0,108220.0,0.51612408]
[1751704143116,0.41873506,108230.0,108220.0,0.51612408]
[1751704145191,0.41873506,108230.0,108220.0,0.51184408]
[1751704145390,0.44335342,108230.0,108220.0,0.51184408]
[1751704145593,0.40949591,108230.0,108220.0,0.51184408]
[1751704155265,0.41873515,108230.0,108220.0,0.51184408]
[1751704155481,0.40949591,108230.0,108220.0,0.51184408]
[1751704156190,0.40025684,108230.0,108220.0,0.51184408]
[1751704156397,0.40949582,108230.0,108220.0,0.51184408]
[1751704157216,0.50093275,108230.0,108220.0,0.51184408]
[1751704157455,0.51017199,108230.0,108220.0,0.51184408]
[1751704157674,0.51017199,108230.0,108220.0,0.49574408]
[1751704159151,0.50093275,108230.0,108220.0,0.49574408]
[1751704159370,0.5101719,108230.0,108220.0,0.49574408]
[1751704159990,0.81565824,108230.0,108220.0,0.27310373]
[1751704160203,0.83205824,108230.0,108220.0,0.47726425]
[1751704160410,0.55221199,108230.0,108220.0,0.47726433]
[1751704160620,0.54297241,108230.0,108220.0,0.49574442]
[1751704160823,0.83205807,108230.0,108220.0,0.49574442]
[1751704161044,0.83205807,108230.0,108220.0,0.50498434]
[1751704161502,0.83205807,108230.0,108220.0,0.49574442]
[1751704161909,0.83205807,108230.0,108220.0,0.50498434]
[1751704162316,0.83205807,108230.0,108220.0,0.49574442]
[1751704164241,0.81565807,108230.0,108220.0,0.49574442]
[1751704164649,0.79925807,108230.0,108220.0,0.49574442]
[1751704165157,0.80641866,108230.0,108220.0,0.48650399]
[1751704165369,0.81565807,108230.0,108220.0,0.48650399]
[1751704165638,0.81565807,108230.0,108220.0,0.49574391]
[1751704165973,0.81565807,108230.0,108220.0,0.48650399]
[1751704166167,0.81565807,108230.0,108220.0,0.49574391]
[1751704166804,0.81565807,108230.0,108220.0,0.50498374]
[1751704166805,0.80641866,108230.0,108220.0,0.50498374]
[1751704167460,0.80641866,108230.0,108220.0,0.49574391]
[1751704170617,0.80641866,108230.0,108220.0,0.48650399]
[1751704171407,0.80641866,108230.0,108220.0,0.49574391]
[1751704171606,0.80641866,108230.0,108220.0,0.48650399]
[1751704172007,0.80641866,108230.0,108220.0,0.49574391]
[1751704172625,0.81565815,108230.0,108220.0,0.48650399]
[1751704172840,0.81565807,108230.0,108220.0,0.48650399]
[1751704173037,0.81565807,108230.0,108220.0,0.49574391]
[1751704173898,0.79001866,108230.0,108220.0,0.49574391]
[1751704175515,0.79925815,108230.0,108220.0,0.49574391]
[1751704175725,0.81535815,108230.0,108220.0,0.49574391]
[1751704177735,0.79925815,108230.0,108220.0,0.49574391]
[1751704179603,0.79001866,108230.0,108220.0,0.49574391]
[1751704180017,0.79925807,108230.0,108220.0,0.50498374]
[1751704180421,0.79925807,108230.0,108220.0,0.49574391]
[1751704182134,0.79925867,108230.0,108220.0,0.49574391]
[1751704182340,0.79001969,108230.0,108220.0,0.47726399]
[1751704182958,0.99747218,108230.0,108220.0,0.18574]